Workbook

Sheet Cover
B2: 3GPP TSG-RAN WG4 Meeting #109 | J2: R4-2320217
B3: Chicago, USA, November 13 – November 17, 2023
B5: Source: Huawei, HiSilicon, Nokia, Nokia Shanghai Bell, Ericsson, Samsung, NTT Docomo, Xiaomi, ZTE
B6: Title: Simulation summary for 256 QAM UL BS Demodulation
B7: Agenda: 8.6.4.1
B8: Document for: Information
B9: Notes: Impairment results include impact or Tx EVM and Rx Phase Noise

Sheet Parameters
C2: Parameters for deriving performance requirements
C3: Ideal Span Threshold | D3: 2 | E3: dB
C4: Impairment Span Threshold | D4: 4 | E4: dB
B7: Notes | C7: 1. Call function DerivingPerfReq()
C8: 2. If the ruls does not apply, or fails, -100dB or less will be returned
D9: -100 | E9: Not enough input
D10: -101 | E10: Input should be pairs
D11: -102 | E11: Too large span for impairment
D12: -103 | E12: After removal iteration, not enough input

Sheet PUSCH 1T2R
A1: FR2-1 PUSCH 1T2R | H1: 38.104 req | I1: 38.141 req | J1: Ericsson | L1: Huawei | N1: Samsung | P1: NTT Docomo | R1: Xiaomi | T1: ZTE | V1: Nokia | X1: SPAN | Z1: AVERAGE
J2: Ideal | K2: Impairment | L2: Ideal | M2: Impairment | N2: Ideal | O2: Impairment | P2: Ideal | Q2: Impairment | R2: Ideal | S2: Impairment | T2: Ideal | U2: Impairment | V2: Ideal | W2: Impairment | X2: Ideal | Y2: Impairment | Z2: Ideal | AA2: Impairment
A3: CP-OFDM | B3: Mapping Type B | C3: PT-RS Enabled | D3: 60kHz, 50MHz | E3: MCS20 | F3: TDLD30-35 | G3: DMRS 1+1 | H3: =DerivingPerfReq(J3:W3) -> 19.9 | I3: =IF(H3>-100,H3+0.6,H3) -> 20.5 | J3: 17.09 | K3: 19.79 | L3: 16.8 | M3: 19.4 | R3: 16.35215823 | T3: 16.8 | V3: 16.48 | W3: 20.37 | X3: =MAX(J3,L3,N3,P3,V3,R3,T3)-MIN(J3,L3,N3,P3,V3,R3,T3) -> 0.7378417722 | Y3: 0.97 | Z3: =AVERAGE(J3,L3,N3,P3,V3,R3,T3) -> 16.70443165 | AA3: 19.85333333
E4: MCS20 | F4: TDLD30-35 | G4: DMRS 1+0 | H4: 20.1 | I4: 20.7 | J4: 17.33 | K4: 19.83 | L4: 17.1 | M4: 19.9 | R4: 16.30910719 | T4: 16.6 | V4: 16.58 | W4: 20.45 | X4: 1.02089281 | Y4: 0.62 | Z4: 16.78382144 | AA4: 20.06
D5: 120kHz, 50MHz | E5: MCS20 | F5: TDLD30-35 | G5: DMRS 1+1 | H5: 19.6 | I5: 20.2 | J5: 17.12 | K5: 19.86 | L5: 16.2 | M5: 18.7 | R5: 16.37042602 | T5: 17.1 | V5: 16.52 | W5: 20.36 | X5: 0.92 | Y5: 1.66 | Z5: 16.6620852 | AA5: 19.64
E6: MCS20 | F6: TDLD30-35 | G6: DMRS 1+0 | H6: 20 | I6: 20.6 | J6: 17.55 | K6: 20.05 | L6: 16.6 | M6: 19.3 | R6: 16.5080772 | T6: 16.9 | V6: 16.87 | W6: 20.75 | X6: 1.041922797 | Y6: 1.45 | Z6: 16.88561544 | AA6: 20.03333333
D7: 120kHz, 100MHz | E7: MCS20 | F7: TDLD30-35 | G7: DMRS 1+1 | H7: 19.7 | I7: 20.3 | J7: 17.22 | K7: 19.83 | L7: 16.1 | M7: 18.8 | R7: 16.06121544 | T7: 17 | V7: 16.59 | W7: 20.49 | X7: 1.158784559 | Y7: 1.69 | Z7: 16.59424309 | AA7: 19.70666667
E8: MCS20 | F8: TDLD30-35 | G8: DMRS 1+0 | H8: 19.9 | I8: 20.5 | J8: 17.48 | K8: 19.98 | L8: 16.4 | M8: 19.2 | R8: 15.94202592 | T8: 16.8 | V8: 16.76 | W8: 20.66 | X8: 1.537974077 | Y8: 1.46 | Z8: 16.67640518 | AA8: 19.94666667
D9: 120kHz, 200MHz | E9: MCS20 | F9: TDLD30-35 | G9: DMRS 1+1 | H9: 19.8 | I9: 20.4 | J9: 17.21 | K9: 19.79 | L9: 16.2 | M9: 19 | R9: 16.02186094 | T9: 17 | V9: 16.58 | W9: 20.51 | X9: 1.188139061 | Y9: 1.51 | Z9: 16.60237219 | AA9: 19.76666667
E10: MCS20 | F10: TDLD30-35 | G10: DMRS 1+0 | H10: 20 | I10: 20.6 | J10: 17.49 | K10: 19.99 | L10: 16.4 | M10: 19.4 | R10: 15.88298526 | T10: 16.9 | V10: 16.72 | W10: 20.71 | X10: 1.607014744 | Y10: 1.31 | Z10: 16.67859705 | AA10: 20.03333333
C11: PT-RS Disabled | D11: 60kHz, 50MHz | E11: MCS20 | F11: TDLD30-35 | G11: DMRS 1+1 | H11: =DerivingPerfReq(J11:W11) -> 19.2 | I11: =IF(H11>-100,H11+0.6,H11) -> 19.8 | J11: 16.45 | K11: 19.36 | L11: 16.2 | M11: 18.7 | R11: 15.52001138 | T11: 15.9 | V11: 15.73 | W11: 19.66 | X11: =MAX(J11,L11,N11,P11,V11,R11,T11)-MIN(J11,L11,N11,P11,V11,R11,T11) -> 0.929988616 | Y11: =MAX(K11,M11,O11,Q11,W11,S11,U11)-MIN(K11,M11,O11,Q11,W11,S11,U11) -> 0.96 | Z11: =AVERAGE(J11,L11,N11,P11,V11,R11,T11) -> 15.96000228 | AA11: =AVERAGE(K11,M11,O11,Q11,W11,S11,U11) -> 19.24
E12: MCS20 | F12: TDLD30-35 | G12: DMRS 1+0 | H12: 19.6 | I12: 20.2 | J12: 16.68 | K12: 19.33 | L12: 16.51 | M12: 19.2 | R12: 15.54618667 | T12: 15.6 | V12: 15.88 | W12: 20.26 | X12: =MAX(J12,L12,N12,P12,V12,R12,T12)-MIN(J12,L12,N12,P12,V12,R12,T12) -> 1.133813332 | Y12: 1.06 | Z12: =AVERAGE(J12,L12,N12,P12,V12,R12,T12) -> 16.04323733 | AA12: 19.59666667
D13: 120kHz, 50MHz | E13: MCS20 | F13: TDLD30-35 | G13: DMRS 1+1 | H13: 18.9 | I13: 19.5 | J13: 16.5 | K13: 19.18 | L13: 15.5 | M13: 18 | R13: 15.27590602 | T13: 16.2 | V13: 15.67 | W13: 19.49 | X13: 1.224093984 | Y13: 1.49 | Z13: 15.8291812 | AA13: 18.89
E14: MCS20 | F14: TDLD30-35 | G14: DMRS 1+0 | H14: =DerivingPerfReq(J14:W14) -> 19.5 | I14: 20.1 | J14: 16.84 | K14: 19.83 | L14: 15.89 | M14: 18.5 | R14: 15.57503949 | T14: 15.9 | V14: 16.01 | W14: 20.15 | X14: 1.264960512 | Y14: 1.65 | Z14: 16.0430079 | AA14: 19.49333333
D15: 120kHz, 100MHz | E15: MCS20 | F15: TDLD30-35 | G15: DMRS 1+1 | H15: 19 | I15: 19.6 | J15: 16.58 | K15: 19.14 | L15: 15.5 | M15: 18.1 | R15: 15.27590602 | T15: 16.3 | V15: 15.8 | W15: 19.76 | X15: 1.304093984 | Y15: 1.66 | Z15: 15.8911812 | AA15: 19
E16: MCS20 | F16: TDLD30-35 | G16: DMRS 1+0 | H16: 19.5 | I16: 20.1 | J16: 16.78 | K16: 19.75 | L16: 15.8 | M16: 18.4 | R16: 15.20639718 | T16: 16 | V16: 15.99 | W16: 20.22 | X16: 1.573602822 | Y16: 1.82 | Z16: 15.95527944 | AA16: 19.45666667
D17: 120kHz, 200MHz | E17: MCS20 | F17: TDLD30-35 | G17: DMRS 1+1 | H17: 19.2 | I17: 19.8 | J17: 16.58 | K17: 19.56 | L17: 15.5 | M17: 18.2 | R17: 15.31986251 | T17: 16.3 | V17: 15.82 | W17: 19.89 | X17: 1.260137487 | Y17: 1.69 | Z17: 15.9039725 | AA17: 19.21666667
E18: MCS20 | F18: TDLD30-35 | G18: DMRS 1+0 | H18: 19.6 | I18: 20.2 | J18: 16.79 | K18: 19.75 | L18: 15.78 | M18: 18.6 | R18: 15.26180797 | T18: 15.9 | V18: 16.01 | W18: 20.53 | X18: 1.528192032 | Y18: 1.93 | Z18: 15.94836159 | AA18: 19.62666667
